Cogmind - Beta 12 @@@ ROGUE MODE // 2023.09.07 @ 23:17:17 Player: heather Result: Destroyed by G-34 Mercenary with Small Laser Performance ------------- Evolutions (0) 0 Regions Visited (2) 400 Robots Destroyed (21) 105 Value Destroyed (461) 461 Prototype IDs (0) 0 Alien Tech Used (0) 0 Bonus (0) 0 TOTAL SCORE: 966 Bonus ------- None Cogmind --------- Core Integrity 0/250 Matter 221/300 Energy 172/250 System Corruption 0% Temperature Cool (12) Movement Treading (160) Location -10/Mines Parts ------- > --- POWER (1) -------- Ion Engine > --- PROPULSION (2) --- Light Treads Light Treads > --- UTILITY (2) ------ Large Storage Unit Core Shielding > --- WEAPON (2) ------- Assault Rifle Light Assault Rifle > --- INVENTORY (15) --- Light Ion Engine Flight Unit Flight Unit Flight Unit High-capacity Matter Pod (89) Targeting Computer Light Assault Rifle Grenade Launcher Peak State ------------ > --- POWER ------------ Ion Engine > --- PROPULSION ------- Light Treads Light Treads > --- UTILITY ---------- Huge Storage Unit Sensor Array > --- WEAPON ----------- Assault Rifle Assault Rifle > --- INVENTORY -------- Ion Engine Light Treads Large Storage Unit Large Matter Pod Visual Processing Unit Terrain Scanner Targeting Computer Core Shielding Grenade Launcher [Rating: 8] Favorites ----------- Power Ion Engine Engine Ion Engine Propulsion Light Treads Treads Light Treads Flight Unit Flight Unit Utility Sensor Array Device Sensor Array Storage Large Storage Unit Protection Core Shielding Weapon Assault Rifle Energy Gun EM Pulse Gun Ballistic Gun Assault Rifle Launcher Grenade Launcher Build | -11 -10 -10 ------- Run | Jun Mat Min Slots Evolved . | . . . Power . | . . . Propulsion . | . . . Utility . | . . . Weapon . | . . . Parts Attached 52 | 4 31 17 Power 8 | . 5 3 Engine 8 | . 5 3 Core . | . . . Reactor . | . . . Propulsion 8 | 2 1 5 Treads 5 | 2 1 2 Leg . | . . . Wheel . | . . . Hover . | . . . Flight 3 | . . 3 Utility 11 | . 8 3 Device 5 | . 5 . Storage 4 | . 2 2 Processor . | . . . Hackware . | . . . Protection 2 | . 1 1 Artifact . | . . . Weapon 25 | 2 17 6 Energy Gun 4 | 1 3 . Energy Cannon . | . . . Ballistic Gun 18 | 1 12 5 Ballistic Cannon . | . . . Launcher 3 | . 2 1 Special Weapon . | . . . Impact Weapon . | . . . Slashing Weapon . | . . . Piercing Weapon . | . . . Special Melee Weapon . | . . . Unidentified Prototypes . | . . . Parts Lost 2 | . . 2 Power 1 | . . 1 Propulsion . | . . . Utility . | . . . Weapon 1 | . . 1 Highest Loss Streak 2 | . . 2 To Critical Strikes . | . . . Average Slot Usage (%) 87 | . 84 93 Engine 11 | . 10 12 Treads 26 | . 28 24 Device 12 | . 13 9 Storage 7 | . 6 12 Protection 2 | . 2 4 Energy Gun 2 | . 3 . Ballistic Gun 20 | . 18 25 Naked Turns . | . . . Heaviest Build 90 | 3 31 90 Greatest Support 40 | 20 40 40 Greatest Overweight (x) 3 | . 3 2 Average Overweight (x) . | . . . Largest Inventory Capacity 25 | 5 15 25 Average Capacity 12 | 5 9 19 Most Carried 10 | 5 8 10 Average Carried 6 | 3 5 8 Final Capacity 15 | 5 15 15 Final Carried 8 | 4 8 8 Class Distribution -------------------- 97% | Mutant Dominant Class ---------------- Mutant | -10/Materials Mutant | -10/Mines Resources | -11 -10 -10 ----------- Run | Jun Mat Min Matter Collected 1001 | 185 572 244 Remotely . | . . . Salvage Created 475 | . 426 49 Parts 44 | . 36 8 Haulers Intercepted 1 | . 1 . Recyclers Shooed . | . . . Parts Field Recycled . | . . . Retrieved Matter . | . . . Parts Self-Destructed . | . . . Prevented . | . . . Kills | -11 -10 -10 ------- Run | Jun Mat Min Combat Hostiles Destroyed 18 | . 14 4 Guns 9 | . 8 1 AOE 9 | . 6 3 Classes Destroyed 5 | . 5 . Worker 1 | . 1 . Hauler 1 | . 1 . Watcher 1 | . 1 . Swarmer 9 | . 6 3 Grunt 9 | . 8 1 Best Kill Streak 5 | . 5 3 Combat Bots Only 4 | . 4 3 Max Kills in Single Turn 3 | . 2 3 Gunslinging . | . . . Exploded 3 | . 2 3 Melee . | . . . Uniques/NPCs Destroyed . | . . . Combat | -11 -10 -10 -------- Run | Jun Mat Min Damage Taken 935 | . 546 389 Core 251 | . 136 115 Absorbed by Shields . | . . . Redirected to Shielding 26 | . 1 25 Core Remaining (%) 100 | 100 . . Volleys Fired 61 | . 50 11 Largest 2 | . 2 2 Hottest 60 | . 60 40 Shots Fired 100 | . 82 18 Gun 92 | . 75 17 Cannon . | . . . Launcher 8 | . 7 1 Special . | . . . Kinetic 71 | . 54 17 Thermal . | . . . Explosive 8 | . 7 1 Electromagnetic 21 | . 21 . Robot Hit Streak 15 | . 15 7 Robot Miss Streak 4 | . 4 1 Penetration Max . | . . . Secondary Targets . | . . . Shots Hit Robots 61 | . 48 13 Core Hits 32 | . 24 8 Critical Kills . | . . . Critical Parts Destroyed . | . . . Critical Strikes 1 | . 1 . Corrupt 1 | . 1 . Melee Attacks . | . . . Impact . | . . . Slashing . | . . . Piercing . | . . . Sneak Attacks . | . . . Combat Hostiles . | . . . Follow-up Attacks . | . . . Damage Inflicted 1184 | . 932 252 Guns 762 | . 630 132 Cannons . | . . . Explosions 422 | . 302 120 Melee . | . . . Ramming . | . . . Kinetic 600 | . 468 132 Thermal . | . . . Explosive 422 | . 302 120 Electromagnetic 162 | . 162 . Impact . | . . . Slashing . | . . . Piercing . | . . . Highest Corruption . | . . . Average Corruption . | . . . Corruption Purged . | . . . Corruption Blocked . | . . . Overload Shots . | . . . Overflow Damage 30 | . 30 . Projectiles . | . . . Explosions 30 | . 30 . Melee . | . . . Knockbacks . | . . . Impact . | . . . Kinetic . | . . . Secondary . | . . . Self-Inflicted Damage 21 | . . 21 Shots 1 | . . 1 Rammed . | . . . Targets Rammed . | . . . Kicked . | . . . Crushed . | . . . Highest Temperature 58 | . 58 6 Average Temperature 23 | . 29 5 Received Heat Transfer 375 | . 261 114 Siege Activations . | . . . Robots Corrupted 1 | . 1 . Combat Hostiles . | . . . Parts Fried 1 | . 1 . Impact Corruptions . | . . . Robots Melted . | . . . Combat Hostiles . | . . . Parts Melted . | . . . Heat Transferred . | . . . Parts Sabotaged . | . . . Parts Stolen . | . . . Parts Stripped . | . . . Power Chain Reactions . | . . . Missiles Intercepted . | . . . Alert | -11 -10 -10 ------- Run | Jun Mat Min Peak Influence 285 | . 285 221 Initial 111 | . . 111 Average 106 | . 115 94 Maximum Alert Level 1 | . 1 1 Low Security (%) 91 | 100 87 98 Level 1 8 | . 12 1 Level 2 . | . . . Level 3 . | . . . Level 4 . | . . . Level 5 . | . . . High Security . | . . . Max Security . | . . . Squads Dispatched 4 | . 4 . Investigation 2 | . 2 . Extermination . | . . . Reinforcement 2 | . 2 . Assault . | . . . Garrison . | . . . Intercept . | . . . Searches Triggered . | . . . Construction Impeded . | . . . Haulers Reinforced . | . . . Active Scanning Responses . | . . . Cargo Convoy Interrupts . | . . . Stealth | -11 -10 -10 --------- Run | Jun Mat Min Distress Signals 3 | . 3 . Communications Jammed . | . . . Distress Signals . | . . . Times Spotted 31 | . 24 7 Peak Tracking Total 5 | . 5 5 Tactical Retreats 4 | . 3 1 Traps | -11 -10 -10 ------- Run | Jun Mat Min Traps Triggered 2 | . 2 . Indirectly . | . . . Trap Hack Attempts . | . . . Triggered . | . . . Disarmed . | . . . Reprogrammed . | . . . Reused . | . . . Traps Extracted . | . . . Installed . | . . . Triggered . | . . . Machines | -11 -10 -10 ---------- Run | Jun Mat Min Machines Disabled 2 | . 2 . Max in Single Turn 2 | . 2 . Machines Repaired . | . . . Machines Sabotaged . | . . . Overloaded Fab Kills . | . . . Hacking | -11 -10 -10 --------- Run | Jun Mat Min Machines Accessed . | . . . Terminals . | . . . Fabricators . | . . . Repair Stations . | . . . Recycling Units . | . . . Scanalyzers . | . . . Garrison Access . | . . . Total Hacks . | . . . Successful . | . . . Failed . | . . . Catastrophic . | . . . Database Lockouts . | . . . Manual . | . . . Terminals . | . . . Fabricators . | . . . Repair Stations . | . . . Recycling Units . | . . . Scanalyzers . | . . . Garrison Access . | . . . Terminal Hacks . | . . . Fabricator Hacks . | . . . Repair Station Hacks . | . . . Recycling Unit Hacks . | . . . Scanalyzer . | . . . Garrison Access Hacks . | . . . Unauthorized Hacks . | . . . Terminals . | . . . Fabricators . | . . . Repair Stations . | . . . Recycling Units . | . . . Scanalyzers . | . . . Garrison Access . | . . . Data Cores Recovered . | . . . Used . | . . . Hacking Detections . | . . . Full Trace Events . | . . . Feedback Events . | . . . Feedback Blocked . | . . . Robot Schematics Acquired . | . . . Robots Built . | . . . Authchips . | . . . Time . | . . . Total Robot Build Rating . | . . . Part Schematics Acquired . | . . . Parts Built . | . . . Authchips . | . . . Time . | . . . Total Part Build Rating . | . . . Parts Repaired . | . . . Time . | . . . Parts Recycled . | . . . Recycled Matter . | . . . Retrieved Matter . | . . . Retrieved Components . | . . . Parts Scanalyzed . | . . . Part Schematics Acquired . | . . . Parts Damaged . | . . . Bothacking | -11 -10 -10 ------------ Run | Jun Mat Min Used RIF Installer . | . . . Robots Hacked . | . . . Non-combat . | . . . Combat . | . . . Robot Hacks Applied . | . . . Relay Couplers Released . | . . . Fabnet Peak Effective % . | . . . Robots Rewired . | . . . Allies Hacked . | . . . Hacks Repelled . | . . . Allies | -11 -10 -10 -------- Run | Jun Mat Min Total Allies . | . . . Largest Group . | . . . Highest-Rated Group . | . . . Highest-Rated Ally . | . . . Total Orders . | . . . Ally Attacks . | . . . Total Damage . | . . . Kills . | . . . Allies Corrupted . | . . . Allies Melted . | . . . Intel | -11 -10 -10 ------- Run | Jun Mat Min Robot Analysis Total . | . . . Derelict Logs Recovered . | . . . Drone Launches . | . . . Drone Recoveries . | . . . Exploration | -11 -10 -10 ------------- Run | Jun Mat Min Turns Passed 1659 | 37 1112 510 Spaces Moved 985 | 48 664 273 Core 500 | 46 407 47 Treads 413 | 2 257 154 Legs . | . . . Wheels . | . . . Hover . | . . . Flight 72 | . . 72 Fastest Speed 37 | 50 50 37 Average Speed 121 | 54 108 163 Slowest Speed 320 | 160 200 320 Overloaded Moves . | . . . Propulsion Burnouts . | . . . Robots Hopped 1 | . . 1 Cave-ins Triggered . | . . . Exploration Rate (%) 41 | 3 97 25 Regions Visited 2 Branch Regions 1 Pre-discovered Areas . | . . . Known Exits Taken . | . . . Unknown Exits Taken 2 | 1 1 . Scrap Searched 1 | . . 1 Spaces Dug . | . . . Terrain Destroyed 43 | . 33 10 Melee . | . . . Projectile . | . . . AOE 43 | . 33 10 Terrain Rammed . | . . . Walls Destroyed . | . . . Machines Disabled . | . . . Actions | -11 -10 -10 --------- Run | Jun Mat Min Total 1347 | 56 976 315 Wait 201 | . 197 4 Move 981 | 47 663 271 Hop 1 | . . 1 Pick Up 27 | 5 14 8 Fast Attach 12 | 3 3 6 Attach 16 | 1 10 5 Detach 9 | . 9 . Swap 24 | . 18 6 Drop 15 | . 12 3 Fire 61 | . 50 11 Melee . | . . . Ram . | . . . Kick . | . . . Crush . | . . . Escape Stasis . | . . . Rewire . | . . . Trap . | . . . Miscellaneous . | . . . Route ------- -11/Junkyard -10/Materials (discovered 3 exits: [*Mat x2] / [*Min]) -10/Mines History --------- Turn | Location | Event 6 | -11/Junkyard | Discovered new exit (range 15) 38 | -11/Junkyard | Entered Materials 65 | -10/Materials | Discovered new exit (range 16) 329 | -10/Materials | Build established: Mutant 528 | -10/Materials | Discovered new exit (range 14) 853 | -10/Materials | Discovered new exit (range 11) 883 | -10/Materials | Core integrity fell below 50% 1150 | -10/Materials | Entered Mines 1196 | -10/Mines | Assembled infested the area 1505 | -10/Mines | Released all parts (7) 1507 | -10/Mines | Core integrity fell below 20% 1660 | -10/Mines | Destroyed by G-34 Mercenary with Small Laser Last Messages --------------- 01545_ Acquired Lgt. Ion Engine. 01546_ Acquired 3 matter. 01546_ Acquired 4 matter. 01547_ K-01 Serf collects debris. 01547_ Acquired Lgt. Assault Rifle. 01560_ K-01 Serf collects debris. 01574_ Dropped Flight Unit. 01574_ Acquired Lgt. Treads. 01577_ Dropped Flight Unit. 01578_ Acquired Lgt. Treads. 01582_ Acquired Flight Unit. 01589_ Acquired Assault Rifle. 01595_ Acquired Ion Engine. 01596_ Extracted 111 matter. 01598_ Acquired Hcp. Matter Pod. 01600_ K-01 Serf collects debris. 01621_ The unstable cave ceiling collapses. 01634_ Assault Rifle destroyed. 01641_ G-47 Trooper destroyed. 01650_ Ion Engine destroyed. Map ----- +----------------------------------------------------+ | | | | | | | | | | | ?????????????????????????????????????????????????? | | ?????????????????????????????????????????????##### | | ????????????????????????????????????????????## | | ????????????????????????????????????????????# | | ????????????????????????????????????????????# | | ????????????????????????????????????????????## | | ????????????????????????????????????????????## | | ????????????????????????????????????????????# # | | ???????????????????????????????????????????## # | | ????????????????????????????????????????#### # | | ??????????????????????????????????????### | | ?????????????????????????????????????## | | ?????????????????????????????????????# | | ?????????????????????????????????????# | | ?????????????????????????????????????## | | ??????????????????????????????????????## | | ???????????????????####???????????????## ###### | | ???????????????????? ???????????????# ##????? | | ?????????????????????*% ????????????### ##????? | | ??????????????????????# ############# #????? | | ??????????????????????# g@ ] ] #?????? | | ??????????????????????############### # ####?### | | ????????????????????????????????????# # ### | | ????????????????????????????????????## ## | | ????????????????????????????????????## | | ????????????????????????????????????# ## ### | | ????????????????????????????????????# ## #?# ! | | ????????????????????????????????????# # # #?# ! | | ????????????????????????????????????# # #?# ! | | ????????????????????????????????????# ########?# | | ????????????????????????????????????# #????????### | | ????????????????????????????????????# #??????????? | | ????????????????????????????????????# #???######?? | | ????????????????????????????????????# #??## ##? | | ????????????????????????????????????# #??# ## | | ????????????????????????????????????# #??# """ # | | ????????????????????????????????????# #?## """ | | ????????????????????????????????????# ### """ | | ????????????????????????????????????# | | ????????????????????????????????????# ### ## # | | ????????????????????????????????##### ### ####### | | ????????????????????????????????# ## #?????? | | ????????????????????????????????# ###### #?????? | | ???????????????????????????????????????## #?????? | | ????????????????????????????????????????## #?????? | +----------------------------------------------------+ Best States ------------- Heat Dissipation 25 Energy Generation 10 Energy Capacity 250 Matter Stores 300 Matter Capacity 350 Sight Range 16 Robot Scan Range 14 Terrain Scan Range 14 Terrain Scan Density 10 Core Shielding 20 Evasion (%) 62 Recoil Reduction 2 Item Schematics ----------------- None Robot Schematics ------------------ None Fabricated ------------ Nothing Alien Tech Used ----------------- None Achievements -------------- None Challenges ------------ None Game ------ Seed ThrowingProcessingBeam Manual? 0 Play Time 00:40:27 Cumulative 15.1 hours Start 2023.09.07 @ 22:34:34 End 2023.09.07 @ 23:17:17 Sessions 1 Manual Loads 0 Difficulty Rogue Special Mode None Game No. 7 Rogue 7 Adventurer 0 Explorer 0 Win Type - Total 0 Types 0/0/0/0/0/0/0/0/0 Lore% 15 Gallery% 11 Achievement% 10 Wizard Run 0 Options --------- ASCII 1 Keyboard 1 Movement Vi Keybinds 0 Fullscreen 0 Font 14/SmallcapsGlow Map View 75x55 Tactical HUD 1 Map Filters NONE Filters NONE Steam 1 RUN: 04d599f1-e889-4a98-afd8-9ba612c09a87